bitfinex/quotes_ETHUSD_20240612
["timestamp","ask_amount","ask_price","bid_price","bid_amount"]
[1718207341313,0.57171843,3618.2,3618.1,2.76388]
[1718207341512,4.67698912,3618.2,3618.1,2.76388]
[1718207342015,1.67698912,3618.2,3618.1,2.76388]
[1718207342307,4.67698912,3618.2,3618.1,2.76388]
[1718207342622,5.64422656,3618.2,3617.8,2.76406]
[1718207342791,1.67698912,3618.1,3617.5,2.7643]
[1718207342990,1.43344514,3618.0,3617.5,2.7643]
[1718207343223,2.76404,3617.9,3617.2,2.76452]
[1718207343507,6.94544175,3617.9,3617.2,2.76452]
[1718207343712,3.0,3617.8,3617.2,2.76452]
[1718207344519,4.43344514,3617.8,3617.2,2.76452]
[1718207344726,5.00516357,3617.8,3617.2,2.76452]
[1718207344882,4.43344514,3617.8,3617.2,2.76452]
[1718207345278,5.00516357,3617.8,3617.2,2.76452]
[1718207346314,1.09851712,3617.7,3617.2,2.76452]
[1718207347295,5.00516357,3617.8,3617.2,2.76452]
[1718207347609,1.09870545,3617.7,3617.2,2.76452]
[1718207347813,0.57171843,3617.7,3617.2,2.76452]
[1718207349313,1.09942572,3617.6,3617.2,2.76452]
[1718207349490,0.57171843,3617.7,3617.2,2.76452]
[1718207349817,1.09940122,3617.6,3617.2,2.76452]
[1718207349994,0.57171843,3617.7,3617.2,2.76452]
[1718207350194,5.29241526,3617.8,3617.2,2.76452]
[1718207350195,1.67115661,3617.6,3617.2,2.76452]
[1718207350512,0.57171843,3617.6,3617.2,2.76452]
[1718207351305,1.09997435,3617.5,3617.2,2.76452]
[1718207351619,3.57171843,3617.6,3617.2,2.76452]
[1718207351793,0.57171843,3617.6,3617.2,2.76452]
[1718207351990,1.09998476,3617.5,3617.2,2.76452]
[1718207352315,3.57171843,3617.6,3617.2,2.76452]
[1718207352517,1.10003877,3617.5,3617.2,2.76452]
[1718207352714,3.57171843,3617.6,3617.2,2.76452]
[1718207353013,1.09995585,3617.5,3617.2,2.76452]
[1718207353218,3.57171843,3617.6,3617.2,2.76452]
[1718207353423,1.09990275,3617.5,3617.2,2.76452]
[1718207353603,3.57171843,3617.6,3617.2,2.76452]
[1718207353818,2.76451,3617.3,3616.6,2.76497]
[1718207354018,2.76466,3617.1,3616.3,2.7652]
[1718207354192,2.53331248,3617.2,3616.0,5.09294]
[1718207354193,2.76481,3616.9,3616.0,5.09294]
[1718207354529,1.43344514,3617.0,3616.0,5.09294]
[1718207354530,2.76498,3616.7,3616.0,2.76544]
[1718207354692,4.19842514,3616.7,3616.0,2.76544]
[1718207354893,3.0,3616.6,3616.0,2.76544]
[1718207355125,3.0,3616.6,3615.7,2.76567]
[1718207355331,3.0,3616.6,3615.7,4.07282807]
[1718207355489,0.57171843,3617.0,3616.4,1.981]
[1718207355690,1.70813358,3617.4,3616.6,2.3224]
[1718207355924,1.70813358,3617.4,3616.6,5.08741]
[1718207355925,1.43344514,3617.3,3616.6,5.08741]
[1718207357330,1.43344514,3617.3,3616.8,2.76483]
[1718207357505,3.57171843,3617.4,3617.0,2.76467]
[1718207357829,1.09947427,3617.3,3617.0,2.76467]
[1718207358126,0.57171843,3617.4,3617.2,2.76452]
[1718207358337,0.57171843,3617.4,3617.3,2.4122]
[1718207358540,0.57171843,3617.7,3617.4,2.76441]
[1718207359029,0.85897012,3617.9,3617.7,2.76418]
[1718207359030,0.57171843,3617.8,3617.7,2.76418]
[1718207359233,1.09968062,3617.8,3617.7,2.76418]
[1718207359456,1.95865074,3617.8,3617.7,2.76418]
[1718207359789,1.95865074,3617.8,3617.4,2.7644]
[1718207359993,0.5713005,3617.6,3617.4,2.7644]
[1718207360434,0.5713005,3617.7,3617.4,3.23894]
[1718207360634,0.85897012,3617.9,3617.7,2.76418]
[1718207360635,0.5713005,3617.8,3617.7,2.76418]
[1718207360793,1.67106837,3617.8,3617.7,2.76418]
[1718207360994,1.09976787,3617.8,3617.7,7.95866]
[1718207361428,2.42861353,3618.2,3618.0,2.76395]
[1718207361429,0.5713005,3618.1,3618.0,2.76395]
[1718207361727,0.5713005,3618.1,3618.0,5.540793]
[1718207361728,1.671201,3618.1,3618.0,5.540793]
[1718207364113,1.0999005,3618.1,3618.0,5.540793]
[1718207364312,1.671201,3618.1,3618.0,5.540793]
[1718207365354,1.0999005,3618.1,3618.0,5.540793]
[1718207366961,0.5713005,3618.2,3618.0,5.540793]
[1718207367107,0.5713005,3618.3,3618.2,2.7638]
[1718207367310,1.06618594,3618.3,3618.2,5.5276]
[1718207367507,0.5713005,3618.4,3618.3,2.3166]
[1718207367708,1.3077239,3619.4,3618.4,2.76365]
[1718207367709,0.5713005,3618.5,3618.4,2.76365]
[1718207367949,0.5713005,3618.5,3618.4,8.34811293]
[1718207367950,1.06260908,3618.5,3618.4,8.34811293]
[1718207368131,0.5713005,3618.6,3618.4,8.34811293]
[1718207368331,0.5713005,3618.7,3618.4,8.34811293]
[1718207369247,0.5713005,3618.8,3618.7,5.52684]
[1718207369562,0.5713005,3618.8,3618.7,7.50784]
[1718207369845,1.59892977,3618.8,3618.7,8.34260529]
[1718207370075,1.02762927,3618.8,3618.7,8.34260529]
[1718207370409,0.5713005,3618.9,3618.8,2.4818]
[1718207370715,1.59912069,3619.0,3618.9,5.52654]
[1718207370907,1.59930624,3619.0,3618.9,5.52654]
[1718207371108,1.59930624,3619.0,3618.9,6.60895053]
[1718207372644,1.59930624,3619.1,3618.9,6.60895053]
[1718207372850,1.59930624,3619.0,3618.9,6.60895053]
[1718207373013,0.5713005,3619.0,3618.9,8.58995053]
[1718207373213,1.02800574,3619.0,3618.9,8.58995053]
[1718207374258,1.59930624,3619.1,3618.9,8.58995053]
[1718207374459,1.59930624,3619.1,3618.9,2.76327]
[1718207374661,1.59930624,3619.0,3618.9,2.76327]
[1718207374818,1.02800574,3619.0,3618.9,2.76327]
[1718207375013,1.88697586,3619.0,3618.9,2.76327]
[1718207376727,1.02800574,3619.0,3618.9,2.76327]
[1718207376933,1.88697586,3619.0,3618.9,2.76327]
[1718207377321,1.02800574,3619.0,3618.9,2.76327]
[1718207381436,1.02800574,3619.0,3618.9,3.237697]
[1718207381646,1.59807521,3619.0,3618.9,3.237697]
[1718207381854,0.57006947,3619.0,3618.9,3.237697]
[1718207382028,1.59807521,3619.0,3618.9,3.237697]
[1718207382763,1.02800574,3619.0,3618.9,3.237697]
[1718207382921,1.88697586,3619.0,3618.9,2.76327]
[1718207386125,1.88697586,3619.0,3618.6,4.74446]
[1718207386440,0.57017373,3618.7,3618.6,2.76346]
[1718207386624,1.59817947,3618.8,3618.3,2.76369]
[1718207386828,1.59817947,3618.8,3618.0,2.76392]
[1718207386829,0.57017373,3618.6,3618.0,2.76392]
[1718207387060,0.57017373,3618.5,3618.0,2.76392]
[1718207387745,1.59817947,3618.5,3618.0,2.76392]
[1718207388087,0.57017373,3618.5,3618.0,2.76392]
[1718207388373,1.59817947,3618.6,3618.0,2.76392]
[1718207388552,1.59817947,3618.6,3618.2,2.76377]
[1718207389125,1.59817947,3618.6,3618.4,2.76358]
[1718207389331,1.59817947,3618.6,3618.4,4.74458]
[1718207389651,0.57017373,3618.6,3618.4,4.74458]
[1718207389866,1.59817947,3618.7,3618.4,4.74458]
[1718207390159,0.57017373,3618.6,3618.4,4.74458]
[1718207390543,0.57017373,3618.6,3618.5,0.05526918]
[1718207390733,0.99885972,3618.7,3618.6,2.76349]
[1718207390934,7.88017373,3619.4,3618.9,2.76327]
[1718207391152,3.0,3619.3,3618.9,2.76327]
[1718207391375,3.57017373,3619.4,3618.6,2.76345]
[1718207391568,2.76305,3619.2,3618.6,2.76345]
[1718207395392,4.43344514,3619.3,3618.6,2.76345]
[1718207395591,3.0,3619.2,3618.6,2.76345]
[1718207395883,1.43344514,3619.3,3618.6,2.76345]
[1718207398254,2.43170027,3619.3,3618.6,2.76345]
[1718207399188,3.001874,3619.3,3618.6,2.76345]
[1718207399386,3.0,3619.2,3618.6,2.76345]
[1718207399565,3.57017373,3619.4,3618.7,0.33161161]
[1718207399762,0.99839309,3619.3,3618.7,0.05526661]
[1718207399980,3.0,3619.3,3618.4,1.981]
[1718207400185,0.57017373,3619.4,3619.0,2.76314]
[1718207400402,1.56888018,3619.5,3619.2,2.76301]
[1718207400727,3.85897012,3619.7,3619.2,2.76301]
[1718207400728,1.56888018,3619.6,3619.2,2.76301]
[1718207400868,3.0,3619.7,3619.2,2.76301]
[1718207400869,0.57017373,3619.7,3619.2,2.76301]
[1718207401067,2.80270583,3619.7,3619.2,2.76301]
[1718207401292,4.56869999,3619.6,3619.2,2.76301]
[1718207401480,3.57017373,3619.6,3619.2,2.76301]
[1718207402172,0.99906279,3619.5,3619.2,2.76301]
[1718207402985,0.99906279,3619.5,3618.9,2.76324]
[1718207403188,2.61157839,3619.4,3618.9,2.76324]
[1718207403504,1.5691224,3619.3,3618.9,2.76324]
[1718207403673,0.57017373,3619.3,3618.9,2.76324]
[1718207404207,0.99917619,3619.2,3618.9,2.76324]
[1718207404378,0.99917619,3619.1,3618.9,2.76324]
[1718207404586,0.57017373,3619.1,3618.9,2.76324]
[1718207404780,0.57017373,3619.2,3618.9,2.76324]
[1718207405182,0.99943306,3619.1,3618.9,2.76324]
[1718207405414,0.57017373,3619.1,3618.9,2.76324]
[1718207406105,0.99942057,3619.0,3618.6,2.76346]
[1718207406331,0.57017373,3619.0,3618.6,2.76346]
[1718207406473,1.56986506,3618.9,3618.6,2.76346]
[1718207406875,0.57017373,3619.0,3618.6,2.76346]
[1718207407097,0.99971207,3618.9,3618.6,2.76346]
[1718207407291,0.57017373,3619.0,3618.6,2.76346]
[1718207408598,0.57017373,3619.0,3618.8,2.7633]
[1718207408802,0.57017373,3619.3,3619.0,2.76319]
[1718207409108,0.57017373,3619.4,3619.0,2.76319]
[1718207409288,3.57017373,3619.5,3619.0,2.76319]
[1718207409487,0.57017373,3619.5,3619.0,2.76319]
[1718207409882,0.99994643,3619.4,3619.0,2.76319]
[1718207410288,0.57017373,3619.5,3619.0,2.76319]
[1718207410489,0.99991442,3619.4,3619.0,2.76319]
[1718207410688,0.57017373,3619.5,3619.0,2.76319]
[1718207410901,0.57017373,3619.6,3619.2,2.76297]
[1718207411091,0.99988353,3619.5,3619.2,2.76297]
[1718207411291,0.57017373,3619.6,3619.2,2.76297]
[1718207411494,3.85897012,3619.7,3619.2,2.76297]
[1718207411495,1.57004747,3619.5,3619.2,2.76297]
[1718207411689,0.57017373,3619.6,3619.2,5.08087]
[1718207411903,7.88017373,3619.8,3619.4,2.76288]
[1718207412077,0.99991661,3619.7,3619.4,2.76288]
[1718207412280,7.88017373,3619.8,3619.4,2.76288]
[1718207412578,7.31,3619.8,3619.4,2.76288]
[1718207413307,0.57017373,3620.0,3619.4,2.76288]
[1718207413613,0.57017373,3620.0,3619.7,2.76265]
[1718207414117,0.85897012,3620.2,3619.4,0.706178]
[1718207414118,0.57017373,3620.1,3619.9,2.7625]
[1718207414279,0.57017373,3620.1,3619.8,2.4787463]
[1718207414280,0.57017373,3620.4,3620.1,2.76233]
[1718207414481,0.57017373,3620.5,3620.1,2.76233]
[1718207414680,1.00031916,3620.4,3620.1,2.76233]
[1718207414879,0.57017373,3620.5,3620.1,2.76233]
[1718207415078,7.31,3620.6,3620.3,2.76214]
[1718207415315,0.57017373,3620.7,3620.3,2.76214]
[1718207415512,1.57010822,3620.8,3620.5,2.76199]
[1718207415751,0.57017373,3620.8,3620.5,2.76199]
[1718207416056,0.99993449,3620.9,3620.5,2.76199]
[1718207416221,0.85897012,3621.1,3620.5,2.76199]
[1718207416222,0.57017373,3621.1,3620.5,2.76199]
[1718207416724,0.57017373,3621.1,3620.7,2.76184]
[1718207417056,1.57010822,3621.3,3620.7,2.76184]
[1718207417252,0.99993449,3621.3,3621.2,2.76151]
[1718207417555,0.85897012,3621.6,3621.2,2.76151]
[1718207417556,0.99879372,3621.5,3621.2,2.76151]
[1718207417917,0.99880419,3621.6,3621.2,2.76151]
[1718207418117,0.57017373,3621.9,3621.4,1.981]
[1718207418330,2.76065,3622.4,3621.5,0.05521828]
[1718207418536,2.76078,3622.2,3620.9,2.7617]
[1718207418720,2.3387,3622.0,3620.9,2.7617]
[1718207419031,2.76107,3621.8,3620.9,2.7617]
[1718207419329,4.19451514,3621.8,3620.9,2.7617]
[1718207419827,3.0,3621.7,3620.9,2.7617]
[1718207420027,0.71945151,3621.6,3620.9,2.7617]
[1718207422430,0.71945151,3621.6,3620.6,2.4683]
[1718207422431,4.19472514,3621.5,3620.5,2.76197]
[1718207422617,4.19472514,3621.5,3620.1,2.3884]
[1718207422618,2.7619,3620.7,3619.5,2.27]
[1718207422841,4.19534514,3620.7,3619.5,2.27]
[1718207423040,2.4923,3621.2,3619.3,1.981]
[1718207423041,2.76209,3620.5,3619.3,1.981]
[1718207423244,2.15299865,3620.4,3619.4,2.76288]
[1718207423663,3.0,3620.5,3619.7,2.76263]
[1718207423871,3.0,3620.5,3619.9,2.76247]
[1718207424071,3.0,3620.5,3620.1,2.76231]
[1718207424269,3.0,3620.8,3620.1,2.76231]
[1718207428069,2.76192,3620.7,3619.7,4.74363]
[1718207428267,3.71953651,3620.6,3619.7,4.74363]
[1718207429302,3.0,3620.6,3619.9,2.76244]
[1718207429800,3.0,3620.6,3619.7,1.981]
[1718207429801,3.0,3620.6,3620.1,2.76229]
[1718207429959,3.0,3620.9,3620.1,2.76229]
[1718207430156,4.43344514,3620.9,3620.1,2.76229]
[1718207430369,3.0,3620.9,3620.3,2.76216]
[1718207430988,3.0,3620.9,3620.4,0.05523994]
[1718207431161,3.0,3621.4,3620.4,0.05523994]
[1718207431371,2.76115,3621.7,3621.0,2.76165]
[1718207431589,2.76091,3622.0,3621.2,2.76145]
[1718207431912,1.43344514,3621.9,3621.2,2.76145]
[1718207433506,7.31,3622.2,3621.4,2.76129]
[1718207433801,4.43344514,3622.1,3621.4,2.76129]
[1718207436355,4.43344514,3622.1,3620.3,0.723226]
[1718207436356,2.76129,3621.5,3620.7,2.76183]
[1718207436624,3.0,3621.4,3620.7,2.76183]
[1718207438826,3.0,3621.4,3620.4,1.981]
[1718207439013,3.0,3621.7,3620.9,2.76167]
[1718207439209,3.0,3621.7,3621.1,2.76152]
[1718207440827,2.76123,3621.6,3620.8,2.76181]
[1718207441013,2.76142,3621.4,3620.4,1.981]
[1718207441425,2.76156,3621.2,3620.3,2.4673]
[1718207441630,3.276156,3621.1,3619.9,7.31]
[1718207441834,0.276156,3621.1,3619.8,4.417]
[1718207443035,2.76169,3621.0,3620.1,2.76231]
[1718207443820,2.76186,3620.8,3620.1,2.76231]
[1718207447343,6.037776,3621.1,3620.3,2.76216]
[1718207447645,5.76162,3621.1,3620.3,2.76216]
[1718207448807,3.0,3621.1,3620.5,2.762]
[1718207449006,3.0,3621.3,3620.0,1.981]
[1718207449444,3.0,3621.3,3620.6,2.76192]
[1718207449641,3.0,3621.3,3620.8,2.76178]
[1718207450515,3.0,3621.6,3620.8,2.76178]
[1718207450726,4.43344514,3621.6,3620.8,2.76178]
[1718207454114,5.00361887,3621.6,3620.8,2.76178]
[1718207455050,3.57017373,3621.6,3620.9,0.05523215]
[1718207455269,3.57017373,3621.6,3620.8,2.503028]
[1718207455270,0.57017373,3621.6,3620.8,2.503028]
[1718207455415,3.0,3621.5,3620.8,2.503028]
[1718207455768,0.57017373,3621.8,3620.8,2.503028]
[1718207455929,0.57017373,3621.7,3620.8,2.503028]
[1718207456249,0.57017373,3621.6,3621.4,2.7613]
[1718207457263,1.57179477,3621.6,3621.4,2.7613]
[1718207460373,1.57179477,3621.6,3620.8,1.981]
[1718207460684,1.57179477,3621.6,3620.8,2.76176]
[1718207460842,4.57179477,3621.6,3620.8,2.76176]
[1718207461174,5.39639998,3621.6,3620.8,2.76176]
[1718207462390,5.39639998,3621.6,3621.0,2.76164]
[1718207462545,2.76129,3621.5,3620.7,2.76186]
[1718207462743,2.76144,3621.3,3620.4,2.76208]
[1718207462943,5.12194,3621.3,3620.4,2.76208]
[1718207463283,2.7616,3621.1,3620.2,7.31]
[1718207463461,3.0,3621.0,3620.2,7.31]
[1718207463647,2.76177,3620.9,3620.1,2.76229]
[1718207463974,2.7619,3620.7,3619.8,2.76255]
[1718207464176,3.0,3620.6,3619.8,2.76255]
[1718207464340,4.01953451,3620.6,3619.8,2.76255]
[1718207464974,6.31423451,3620.6,3619.8,2.76255]
[1718207465140,2.76209,3620.5,3619.5,5.13238]
[1718207465678,3.0,3620.4,3619.5,5.13238]
[1718207466244,2.76221,3620.3,3619.5,2.76278]
[1718207466452,2.76238,3620.1,3619.4,0.86028506]
[1718207466773,2.76252,3619.9,3619.4,0.86028506]
[1718207467186,3.0,3620.0,3619.4,0.86028506]
[1718207467187,2.76265,3619.7,3619.4,0.86028506]
[1718207467781,5.76265,3619.7,3619.4,0.86028506]
[1718207467942,6.78225951,3619.7,3619.4,0.86028506]
[1718207468545,9.20515951,3619.7,3619.4,0.86028506]
[1718207469380,8.18555,3619.7,3619.4,0.86028506]
[1718207470151,8.18555,3619.7,3619.0,2.76314]
[1718207470478,3.0,3619.6,3619.0,2.76314]
[1718207472774,3.0,3619.6,3619.4,2.76282]
[1718207472990,0.57218437,3620.0,3619.9,2.7625]
[1718207473188,4.55721967,3620.3,3619.9,3.03875]
[1718207473389,0.57218437,3620.4,3620.1,2.76229]
[1718207473566,7.31,3620.6,3620.1,2.76229]
[1718207474184,7.31,3620.6,3620.3,2.76214]
[1718207475073,3.0,3620.5,3620.3,2.76214]
[1718207477917,0.57218437,3620.9,3620.3,2.76214]
[1718207478122,1.43344514,3620.9,3620.3,2.76214]
[1718207478314,4.43344514,3620.9,3620.3,2.76214]
[1718207478486,3.0,3620.9,3620.5,2.762]
[1718207478826,3.90526674,3621.2,3620.5,2.762]
[1718207478986,2.4191503,3621.1,3620.5,2.762]
[1718207479186,5.4191503,3621.1,3620.5,2.762]
[1718207479520,4.43344514,3621.1,3620.5,2.762]
[1718207479823,1.43344514,3621.1,3620.5,2.762]
[1718207480123,2.99090097,3621.1,3620.5,2.762]
[1718207480323,3.57218437,3621.0,3620.5,2.762]
[1718207480692,0.98552095,3620.9,3620.5,2.762]
[1718207480896,1.55770532,3620.9,3620.5,2.762]
[1718207481096,0.57218437,3620.8,3620.5,2.762]
[1718207481397,0.57218437,3620.7,3620.2,2.76225]
[1718207481794,0.57218437,3620.8,3620.2,2.76225]
[1718207482938,1.55759327,3620.9,3620.2,2.76225]
[1718207483248,2.99103841,3620.9,3620.2,2.76225]
[1718207483399,3.0,3620.8,3620.2,2.76225]
[1718207483930,5.00562951,3620.9,3620.2,2.76225]
[1718207484134,3.0,3620.8,3620.5,2.76199]
[1718207484313,0.57218437,3620.9,3620.5,2.76199]
[1718207484518,1.55777122,3620.9,3620.5,2.76199]
[1718207484726,0.57218437,3620.9,3620.5,2.76199]
[1718207485026,1.55784405,3621.0,3620.5,2.76199]
[1718207485354,0.57218437,3620.9,3620.5,2.76199]
[1718207486370,1.55784405,3620.9,3620.5,2.76199]
[1718207486691,0.57218437,3620.9,3620.5,2.76199]
[1718207486871,1.55784405,3620.9,3620.5,2.76199]
[1718207487026,0.57218437,3620.9,3620.5,2.76199]
[1718207487229,1.55784405,3620.9,3620.5,2.76199]
[1718207487429,0.57218437,3620.9,3620.5,2.76199]
[1718207487687,0.57218437,3620.8,3620.5,2.76199]
[1718207487972,1.55784405,3620.7,3620.5,2.76199]
[1718207488122,0.57218437,3620.7,3620.5,2.76199]
[1718207488326,1.55784405,3620.7,3620.5,2.76199]
[1718207488556,0.57218437,3620.7,3620.5,2.76199]
[1718207488756,1.55784405,3620.7,3620.5,2.76199]
[1718207489062,0.85897012,3620.9,3620.5,2.76199]
[1718207489063,1.55784405,3620.8,3620.5,2.76199]
[1718207489467,0.57218437,3620.8,3620.5,2.76199]
[1718207489771,1.55784405,3620.8,3620.5,2.76199]
[1718207490141,0.57218437,3620.8,3620.5,2.76199]
[1718207490329,1.55784405,3620.8,3620.5,2.76199]
[1718207490551,2.33233885,3620.8,3619.5,2.7628]
[1718207490755,1.55784405,3620.7,3619.5,2.7628]
[1718207491352,0.57218437,3620.7,3619.5,2.7628]
[1718207491693,1.55784405,3620.7,3619.5,2.7628]
[1718207491891,0.57218437,3620.7,3619.5,2.7628]
[1718207492088,1.55784405,3620.7,3620.1,2.76232]
[1718207492386,1.55784405,3620.6,3620.1,2.76232]
[1718207492593,1.55784405,3620.7,3620.1,2.76232]
[1718207493885,0.98565968,3620.6,3620.1,2.76232]
[1718207494050,1.55784405,3620.6,3620.1,2.76232]
[1718207494601,1.55784405,3620.6,3619.4,4.278]
[1718207494602,2.76216,3620.4,3619.5,2.76277]
[1718207494891,4.5584209,3620.3,3619.5,2.76277]
[1718207495092,0.9862228,3620.2,3619.5,2.76277]
[1718207495474,1.55840717,3620.2,3619.5,2.76277]
[1718207495995,0.9862228,3620.1,3619.5,2.76277]
[1718207496556,1.55840717,3620.1,3619.5,2.76277]
[1718207496780,0.57218437,3620.1,3619.5,2.76277]
[1718207496981,0.9862228,3620.1,3619.5,2.76277]
[1718207497563,1.55840717,3620.2,3619.5,2.76277]
[1718207498065,0.9862228,3620.1,3619.5,2.76277]
[1718207498271,1.55840717,3620.1,3619.5,2.76277]
[1718207498507,1.55840717,3620.2,3619.5,2.76277]
[1718207498673,1.55840717,3620.1,3619.5,2.76277]
[1718207499006,0.57218437,3620.1,3619.5,2.76277]
[1718207499610,0.98622486,3620.1,3619.5,2.76277]
[1718207499905,0.98622486,3620.0,3619.5,2.76277]
[1718207500405,1.55849091,3620.2,3619.5,2.76277]
[1718207500706,0.57218437,3620.2,3619.5,2.76277]
[1718207501297,1.55847074,3620.1,3619.5,2.76277]
[1718207501604,0.98628637,3620.0,3619.5,2.76277]
[1718207501815,0.57218437,3620.1,3619.5,2.76277]
[1718207502008,0.98658993,3620.0,3619.5,2.76277]
[1718207502197,0.98687587,3619.9,3619.5,2.76277]
[1718207502395,0.57218437,3619.9,3619.5,2.76277]
[1718207503580,0.57218437,3620.0,3619.5,2.76277]
[1718207503782,0.98687901,3619.9,3619.5,2.76277]
[1718207504073,0.57218437,3620.0,3619.5,2.76277]
[1718207504278,0.57218437,3620.1,3619.5,3.039047]
[1718207504511,0.57218437,3620.1,3619.5,2.76277]
[1718207504879,1.5589508,3620.0,3619.5,2.76277]
[1718207505213,0.57218437,3620.1,3619.5,2.76277]
[1718207505404,0.98683233,3620.0,3619.5,2.76277]
[1718207505636,0.57218437,3620.1,3619.5,2.76277]
[1718207505838,1.55899475,3620.0,3619.5,2.76277]
[1718207506043,1.55899475,3619.9,3619.5,2.76277]
[1718207506248,0.57218437,3619.9,3619.5,2.76277]
[1718207506424,0.98679676,3619.8,3619.5,2.76277]
[1718207506809,2.76284,3619.5,3618.8,2.76328]
[1718207507315,0.57218437,3619.3,3618.8,2.76328]
[1718207507639,0.98652569,3619.2,3618.8,2.76328]
[1718207507856,0.57218437,3619.3,3618.8,2.76328]
[1718207508004,0.98650655,3619.2,3618.8,2.76328]
[1718207508200,0.57218437,3619.3,3618.8,2.76328]
[1718207508439,0.98647554,3619.2,3618.8,2.76328]
[1718207508646,3.57218437,3619.4,3618.8,2.76328]
[1718207508953,0.9863311,3619.3,3618.8,2.76328]
[1718207509252,4.41682186,3619.4,3618.8,2.76328]
[1718207509417,1.55843052,3619.3,3618.8,2.76328]
[1718207509606,0.98624615,3619.2,3618.8,2.76328]
[1718207509804,0.57218437,3619.3,3618.8,2.76328]
[1718207510040,0.98627482,3619.2,3618.8,2.76328]
[1718207510227,0.57218437,3619.3,3618.8,2.76328]
[1718207510427,0.98619004,3619.2,3618.8,2.76328]
[1718207510743,0.57218437,3619.3,3618.8,2.76328]
[1718207510945,3.57218437,3619.4,3618.8,2.76328]
[1718207511154,0.98597864,3619.3,3618.8,2.76328]
[1718207511360,3.57218437,3619.4,3618.8,2.76328]
[1718207511527,0.98576424,3619.3,3618.8,2.76328]
[1718207512356,3.57218437,3619.4,3618.8,2.76328]
[1718207512510,3.0,3619.4,3618.8,2.76328]
[1718207515170,0.98544874,3619.3,3618.8,2.76328]
[1718207515334,1.55758109,3619.3,3618.8,2.76328]
[1718207516139,1.55758109,3619.3,3618.1,2.7638]
[1718207516140,1.55758109,3619.3,3618.5,2.76352]
[1718207516447,2.7633,3618.9,3618.2,2.76375]
[1718207516789,4.55758109,3618.8,3618.2,2.76375]
[1718207517068,3.57218437,3618.8,3618.2,2.76375]
[1718207517272,3.0,3618.8,3618.2,2.76375]
[1718207521990,3.0,3618.8,3618.2,2.76375]
[1718207522290,3.0,3618.8,3618.4,2.76361]
[1718207522592,3.57218437,3619.1,3618.4,2.76361]
[1718207522790,2.44859959,3619.0,3618.4,2.76361]
[1718207523092,5.44859959,3619.0,3618.4,2.76361]
[1718207523264,2.44859959,3619.0,3618.4,2.76361]
[1718207523460,3.0,3619.1,3618.8,2.76332]
[1718207523797,3.0,3619.4,3619.0,2.76317]
[1718207524003,4.43344514,3619.4,3619.0,2.76317]
[1718207524814,1.55663575,3619.3,3619.0,2.76317]
[1718207525665,1.55663575,3619.3,3618.7,2.76336]
[1718207526086,1.55663575,3619.3,3618.9,2.76321]
[1718207527369,0.17191902,3619.3,3619.1,10.00182]
[1718207527581,1.14390292,3619.7,3619.6,5.15873]
[1718207527764,1.14390292,3619.7,3619.6,7.13973]
[1718207527963,2.76171,3621.0,3620.1,2.76229]
[1718207528390,2.4111,3621.1,3620.4,2.76211]
[1718207528690,2.4111,3621.1,3619.9,2.76246]
[1718207528993,2.76147,3621.3,3620.0,2.03623976]
[1718207529673,1.43344514,3621.2,3620.0,2.03623976]
[1718207529872,1.105927,3621.4,3620.1,0.20362398]
[1718207530110,1.43344514,3621.3,3620.2,0.05523642]
[1718207530279,1.43344514,3621.3,3620.3,0.05523645]
[1718207531111,4.43344514,3621.3,3620.9,2.76173]
[1718207531312,1.105927,3621.4,3621.2,2.76148]
[1718207532018,2.3705,3622.1,3621.5,2.76124]
[1718207533696,3.0,3621.7,3621.5,2.76124]
[1718207534683,3.0,3621.7,3621.2,2.7615]
[1718207536487,5.3705,3622.1,3621.2,2.7615]
[1718207536688,2.24657714,3622.0,3621.2,2.7615]
[1718207536893,5.24657714,3622.0,3621.2,2.7615]
[1718207537224,2.76098,3621.9,3620.7,2.76186]
[1718207537404,4.98344514,3621.8,3620.7,2.76186]
[1718207537605,3.0,3621.7,3620.7,2.76186]
[1718207537807,1.43344514,3621.6,3620.7,2.76186]
[1718207538003,1.43344514,3621.6,3620.4,1.981]
[1718207538004,3.0,3621.8,3620.4,1.981]
[1718207538250,3.0,3621.8,3620.8,1.981]
[1718207538393,3.0,3622.0,3620.9,0.1981]
[1718207538591,2.3705,3622.1,3620.9,0.1981]
[1718207538592,1.43344514,3621.9,3620.9,0.1981]
[1718207539090,1.43344514,3621.9,3621.2,2.7615]
[1718207539925,3.0,3622.0,3621.2,2.7615]
[1718207540143,1.43344514,3622.0,3621.4,2.76128]
[1718207540309,4.43344514,3622.0,3621.4,2.76128]
[1718207540688,3.0,3621.9,3621.4,2.76128]
[1718207540886,1.43344514,3622.0,3621.4,2.76128]
[1718207541521,2.15286465,3622.0,3621.4,2.76128]
[1718207544220,1.43344514,3621.9,3621.4,2.76128]
[1718207548530,4.43344514,3621.9,3621.4,2.76128]
[1718207551324,2.76105,3621.8,3621.1,2.76154]
[1718207551527,5.22483661,3621.7,3621.1,2.76154]
[1718207552734,2.76121,3621.6,3621.1,2.76154]
[1718207553035,4.43344514,3621.5,3621.1,2.76154]
[1718207555324,3.0,3621.7,3621.3,2.7614]
[1718207555652,3.0,3621.8,3621.3,2.7614]
[1718207555846,4.43344514,3621.8,3621.3,2.7614]
[1718207556012,1.43344514,3621.8,3621.3,2.7614]
[1718207556213,3.0,3621.7,3620.9,2.76172]
[1718207556414,3.0,3622.0,3620.9,2.76172]
[1718207556611,1.43344514,3622.0,3621.4,2.76129]
[1718207556922,4.43344514,3622.0,3621.4,2.76129]
[1718207558056,7.19435514,3622.0,3621.4,2.76129]
[1718207558349,8.51226306,3622.0,3621.4,2.76129]
[1718207558933,2.76106,3621.8,3621.1,2.76154]
[1718207559149,5.28468645,3621.7,3621.4,0.824]
[1718207561457,4.43344514,3621.7,3621.4,0.824]
[1718207562415,4.43344514,3621.7,3621.6,0.824]
[1718207564343,1.43344514,3621.7,3621.6,0.824]
[1718207565854,1.43344514,3621.7,3620.4,2.7621]